fUSD/lending_fUSD_20250221
["ID","MTS","AMOUNT","RATE_DAILY","PERIOD"]
[353949688,1740165049095,-500.0,0.0001104,2]
[353949689,1740165049104,-500.0,0.0001104,2]
[353949691,1740165049114,-500.0,0.0001104,2]
[353949693,1740165049124,-478.02,0.0001104,2]
[353949695,1740165049133,-165.0,0.00011041,3]
[353949697,1740165049142,-731.51,0.00011041,2]
[353949699,1740165049152,-500.0,0.00011041,2]
[353949701,1740165049162,-500.0,0.00011041,2]
[353949704,1740165049172,-500.0,0.00011041,2]
[353949706,1740165049182,-500.0,0.00011041,2]
[353949708,1740165049191,-304.62556046,0.00011041,2]
[353949710,1740165049201,-500.0,0.00011041,2]
[353949712,1740165049210,-500.0,0.00011041,2]
[353949714,1740165049219,-573.35,0.00011041,2]
[353949716,1740165049229,-500.0,0.00011041,2]
[353949718,1740165049239,-200.0,0.00011041,2]
[353949720,1740165049249,-500.0,0.00011041,2]
[353949722,1740165049259,-500.0,0.00011041,2]
[353949723,1740165049268,-500.0,0.00011041,2]
[353949725,1740165049278,-500.0,0.00011041,2]
[353949727,1740165049287,-500.0,0.00011041,2]
[353949729,1740165049297,-500.0,0.00011041,2]
[353949731,1740165049307,-500.0,0.00011041,2]
[353949734,1740165049316,-500.0,0.00011041,2]
[353949736,1740165049326,-500.0,0.00011041,2]
[353949737,1740165049335,-500.0,0.00011041,2]
[353949740,1740165049347,-500.0,0.00011041,2]
[353949742,1740165049357,-500.0,0.00011041,2]
[353949744,1740165049366,-500.0,0.00011041,2]
[353949745,1740165049375,-500.0,0.00011041,2]
[353949748,1740165049385,-797.23,0.00011041,2]
[353949749,1740165049395,-500.0,0.00011041,2]
[353949751,1740165049405,-677.02,0.00011041,2]
[353949753,1740165049415,-818.62,0.00011041,2]
[353949755,1740165049424,-840.96,0.00011041,2]
[353949757,1740165049433,-500.0,0.00011041,2]
[353949759,1740165049443,-500.0,0.00011041,2]
[353949761,1740165049453,-500.0,0.00011041,2]
[353949763,1740165049463,-500.0,0.00011041,2]
[353949765,1740165049472,-332.07425204,0.00011041,2]
[353949767,1740165049482,-606.03269998,0.00011041,2]
[353949769,1740165049491,-500.0,0.00011041,2]
[353949771,1740165049500,-580.81803478,0.00011041,2]
[353949773,1740165049509,-500.0,0.00011041,2]
[353949775,1740165049518,-575.33,0.00011041,2]
[353949777,1740165049527,-500.0,0.00011041,2]
[353949779,1740165049537,-619.06,0.00011041,2]
[353949781,1740165049547,-7203.316952,0.00011041,2]
[353949783,1740165049557,-500.0,0.00011041,2]
[353949785,1740165049567,-500.0,0.00011041,2]
[353949787,1740165049576,-500.0,0.00011041,2]
[353949789,1740165049586,-500.0,0.00011041,2]
[353949791,1740165049596,-500.0,0.00011041,2]
[353949793,1740165049605,-500.0,0.00011041,2]
[353949795,1740165049614,-200.0,0.00011041,2]
[353949797,1740165049624,-1742.76,0.00011041,2]
[353949799,1740165049634,-500.0,0.00011041,2]
[353949801,1740165049643,-316.4,0.00011041,2]
[353949803,1740165049651,-500.0,0.00011041,2]
[353949805,1740165049661,-500.0,0.00011041,2]
[353949807,1740165049669,-502.12373826,0.00011041,2]
[353949809,1740165049678,-500.0,0.00011041,2]
[353949811,1740165049688,-500.0,0.00011041,2]
[353949813,1740165049697,-565.11,0.00011041,2]
[353949815,1740165049706,-1160.38,0.00011041,2]
[353949817,1740165049715,-500.0,0.00011041,2]
[353949819,1740165049724,-488.4844255,0.00011041,2]
[353949821,1740165049734,-680.99,0.00011041,2]
[353949823,1740165049743,-500.0,0.00011041,2]
[353949825,1740165049752,-626.89,0.00011041,2]
[353949827,1740165049761,-500.0,0.00011041,2]
[353949829,1740165049771,-1029.96,0.00011041,2]
[353949831,1740165049780,-500.0,0.00011041,2]
[353949833,1740165049789,-500.0,0.00011041,2]
[353949835,1740165049798,-500.0,0.00011041,2]
[353949837,1740165049807,-858.03,0.00011041,2]
[353949839,1740165049816,-500.0,0.00011041,2]
[353949841,1740165049825,-502.89,0.00011041,2]
[353949843,1740165049834,-589.86,0.00011041,2]
[353949845,1740165049845,-500.0,0.00011041,2]
[353949847,1740165049854,-500.0,0.00011041,2]
[353949849,1740165049863,-1194.6,0.00011041,2]
[353949851,1740165049873,-500.0,0.00011041,2]
[353949853,1740165049882,-500.0,0.00011041,2]
[353949855,1740165049891,-500.0,0.00011041,2]
[353949857,1740165049900,-500.0,0.00011041,2]
[353949859,1740165049909,-501.69969417,0.00011041,2]
[353949861,1740165049919,-500.0,0.00011041,2]
[353949863,1740165049933,-1339.27,0.00011041,2]
[353949865,1740165049942,-697.33,0.00011041,2]
[353949867,1740165049951,-500.0,0.00011041,2]
[353949869,1740165049961,-500.0,0.00011041,2]
[353949871,1740165049970,-500.0,0.00011041,2]
[353949873,1740165049979,-500.0,0.00011041,2]
[353949875,1740165049989,-510.09708833,0.00011041,2]
[353949878,1740165049999,-500.0,0.00011041,2]
[353949879,1740165050008,-500.0,0.00011041,2]
[353949900,1740165050179,-589.93,0.00011041,2]
[353949902,1740165050190,-500.0,0.00011041,2]
[353949904,1740165050199,-500.0,0.00011041,2]
[353949906,1740165050208,-500.0,0.00011041,2]
[353949908,1740165050217,-500.0,0.00011041,2]
[353949910,1740165050226,-508.8116063,0.00011041,2]
[353949912,1740165050235,-500.0,0.00011041,2]
[353949914,1740165050244,-506.79323358,0.00011041,2]
[353949916,1740165050253,-500.0,0.00011041,2]
[353949918,1740165050262,-500.0,0.00011041,2]
[353949920,1740165050272,-500.0,0.00011041,2]
[353949922,1740165050281,-1218.86,0.00011041,2]
[353949924,1740165050290,-500.0,0.00011041,2]
[353949926,1740165050299,-872.66,0.00011041,2]
[353949928,1740165050308,-500.0,0.00011041,2]
[353949930,1740165050317,-847.49,0.00011041,2]
[353949932,1740165050326,-500.0,0.00011041,2]
[353949934,1740165050335,-500.0,0.00011041,2]
[353949936,1740165050345,-500.0,0.00011041,2]
[353949938,1740165050355,-1152.78,0.00011041,2]
[353949940,1740165050365,-500.0,0.00011041,2]
[353949942,1740165050374,-784.84,0.00011041,2]
[353949944,1740165050383,-651.21,0.00011041,2]
[353949946,1740165050393,-811.75,0.00011041,2]
[353949948,1740165050402,-500.0,0.00011041,2]
[353949950,1740165050412,-500.0,0.00011041,2]
[353949952,1740165050421,-638.47,0.00011041,2]
[353949954,1740165050430,-1602.77,0.00011041,2]
[353949956,1740165050439,-500.0,0.00011041,2]
[353949958,1740165050448,-928.49,0.00011041,2]
[353949959,1740165050457,-1453.54,0.00011041,2]
[353949960,1740165050466,-500.0,0.00011041,2]
[353949961,1740165050476,-500.0,0.00011041,2]
[353949962,1740165050485,-1052.55,0.00011041,2]
[353949963,1740165050494,-654.12,0.00011041,2]
[353949964,1740165050504,-500.0,0.00011041,2]
[353949965,1740165050513,-600.59,0.00011041,2]
[353949966,1740165050523,-500.0,0.00011041,2]
[353949967,1740165050532,-500.0,0.00011041,2]
[353949968,1740165050541,-600.19,0.00011041,2]
[353949970,1740165050550,-500.0,0.00011041,2]
[353949972,1740165050559,-1557.94,0.00011041,2]
[353949974,1740165050569,-723.16,0.00011041,2]
[353949976,1740165050577,-500.0,0.00011041,2]
[353949978,1740165050587,-500.0,0.00011041,2]
[353949980,1740165050598,-501.97277361,0.00011041,2]
[353949982,1740165050607,-973.86,0.00011041,2]
[353949984,1740165050615,-627.0,0.00011041,2]
[353949986,1740165050624,-597.11,0.00011041,2]
[353949988,1740165050633,-502.2805188,0.00011041,2]
[353949990,1740165050642,-1361.06,0.00011041,2]
[353949992,1740165050651,-500.0,0.00011041,2]
[353949994,1740165050662,-500.0,0.00011041,2]
[353949996,1740165050672,-500.0,0.00011041,2]
[353949998,1740165050681,-500.0,0.00011041,2]
[353950000,1740165050691,-545.63,0.00011041,2]
[353950002,1740165050700,-684.05,0.00011041,2]
[353950004,1740165050709,-508.67,0.00011041,2]
[353950006,1740165050718,-500.0,0.00011041,2]
[353950008,1740165050727,-865.33,0.00011041,2]
[353950010,1740165050737,-565.87,0.00011041,2]
[353950012,1740165050746,-612.75,0.00011041,2]
[353950014,1740165050755,-523.64,0.00011041,2]
[353950016,1740165050764,-645.56,0.00011041,2]
[353950018,1740165050773,-961.54,0.00011041,2]
[353950020,1740165050782,-842.47,0.00011041,2]
[353950022,1740165050791,-500.0,0.00011041,2]
[353950024,1740165050800,-500.0,0.00011041,2]
[353950026,1740165050809,-500.0,0.00011041,2]
[353950028,1740165050818,-895.28,0.00011041,2]
[353950030,1740165050827,-500.0,0.00011041,2]
[353950032,1740165050836,-500.0,0.00011041,2]
[353950034,1740165050846,-793.32,0.00011041,2]
[353950036,1740165050855,-500.0,0.00011041,2]
[353950038,1740165050864,-500.0,0.00011041,2]
[353950040,1740165050872,-500.0,0.00011041,2]
[353950042,1740165050881,-514.87,0.00011041,2]
[353950044,1740165050891,-691.0,0.00011041,2]
[353950046,1740165050900,-500.0,0.00011041,2]
[353950048,1740165050909,-1112.36,0.00011041,2]
[353950050,1740165050919,-500.0,0.00011041,2]
[353950052,1740165050932,-840.51,0.00011041,2]
[353950054,1740165050941,-500.0,0.00011041,2]
[353950056,1740165050950,-500.0,0.00011041,2]
[353950058,1740165050959,-500.0,0.00011041,2]
[353950060,1740165050969,-1180.13,0.00011041,2]
[353950062,1740165050978,-844.88,0.00011041,2]
[353950064,1740165050986,-806.72,0.00011041,2]
[353950066,1740165050995,-500.0,0.00011041,2]
[353950068,1740165051005,-537.23,0.00011041,2]
[353950070,1740165051015,-501.59858499,0.00011041,2]
[353950072,1740165051024,-500.0,0.00011041,2]
[353950074,1740165051034,-892.59,0.00011041,2]
[353950076,1740165051043,-500.0,0.00011041,2]
[353950078,1740165051052,-806.21,0.00011041,2]
[353950080,1740165051061,-572.73,0.00011041,2]
[353950082,1740165051069,-500.0,0.00011041,2]
[353950084,1740165051078,-1563.66,0.00011041,2]
[353950086,1740165051087,-821.26,0.00011041,2]
[353950088,1740165051097,-500.0,0.00011041,2]
[353950090,1740165051106,-500.0,0.00011041,2]
[353950092,1740165051115,-503.18270127,0.00011041,2]
[353950094,1740165051124,-500.0,0.00011041,2]
[353950096,1740165051133,-500.0,0.00011041,2]
[353950099,1740165051142,-940.42,0.00011041,2]
[353950100,1740165051152,-500.0,0.00011041,2]
[353950102,1740165051162,-611.12,0.00011041,2]
[353950104,1740165051172,-500.0,0.00011041,2]
[353950106,1740165051181,-500.0,0.00011041,2]
[353950108,1740165051190,-500.0,0.00011041,2]
[353950110,1740165051199,-500.0,0.00011041,2]
[353950112,1740165051208,-1780.54,0.00011041,2]
[353950114,1740165051217,-500.0,0.00011041,2]
[353950116,1740165051226,-500.0,0.00011041,2]
[353950118,1740165051235,-500.0,0.00011041,2]
[353950119,1740165051244,-500.0,0.00011041,2]
[353950120,1740165051253,-991.67,0.00011041,2]
[353950121,1740165051262,-500.0,0.00011041,2]
[353950122,1740165051271,-500.0,0.00011041,2]
[353950123,1740165051281,-500.0,0.00011041,2]
[353950124,1740165051290,-528.9,0.00011041,2]
[353950125,1740165051299,-1033.27,0.00011041,2]
[353950126,1740165051308,-1402.78,0.00011041,2]
[353950127,1740165051317,-504.60281853,0.00011041,2]
[353950129,1740165051327,-500.0,0.00011041,2]
[353950131,1740165051335,-500.0,0.00011041,2]
[353950132,1740165051347,-500.0,0.00011041,2]
[353950134,1740165051357,-500.0,0.00011041,2]
[353950135,1740165051367,-600.36,0.00011041,2]
[353950136,1740165051376,-500.0,0.00011041,2]
[353950137,1740165051385,-882.31,0.00011041,2]
[353950139,1740165051395,-500.0,0.00011041,2]
[353950140,1740165051404,-274.25142834,0.00011041,2]
[353950141,1740165051413,-970.65,0.00011041,2]
[353950142,1740165051423,-500.0,0.00011041,2]
[353950143,1740165051431,-500.0,0.00011041,2]
[353950144,1740165051440,-500.0,0.00011041,2]
[353950145,1740165051449,-439.92568145,0.00011041,2]
[353950146,1740165051459,-500.0,0.00011041,2]
[353950147,1740165051467,-500.0,0.00011041,2]
[353950148,1740165051477,-500.0,0.00011041,2]
[353950149,1740165051485,-550.33,0.00011041,2]
[353950150,1740165051494,-624.71,0.00011041,2]
[353950151,1740165051503,-500.0,0.00011041,2]
[353950152,1740165051512,-500.0,0.00011041,2]
[353950153,1740165051521,-500.0,0.00011041,2]
[353950154,1740165051538,-500.0,0.00011041,2]
[353950155,1740165051547,-500.0,0.00011041,2]
[353950156,1740165051558,-500.0,0.00011041,2]
[353950157,1740165051566,-500.0,0.00011041,2]
[353950158,1740165051575,-500.0,0.00011041,2]
[353950159,1740165051584,-1496.36,0.00011041,2]
[353950160,1740165051593,-500.0,0.00011041,2]
[353950161,1740165051602,-500.0,0.00011041,2]
[353950162,1740165051611,-500.0,0.00011041,2]
[353950163,1740165051620,-500.0,0.00011041,2]
[353950164,1740165051629,-500.0,0.00011041,2]
[353950165,1740165051638,-552.04,0.00011041,2]
[353950166,1740165051646,-500.0,0.00011041,2]
[353950167,1740165051655,-795.52,0.00011041,2]
[353950168,1740165051664,-500.0,0.00011041,2]
[353950169,1740165051673,-500.0,0.00011041,2]
[353950170,1740165051683,-529.57,0.00011041,2]
[353950171,1740165051692,-512.15,0.00011041,2]
[353950172,1740165051702,-500.0,0.00011041,2]
[353950173,1740165051712,-500.0,0.00011041,2]
[353950174,1740165051722,-500.0,0.00011041,2]
[353950175,1740165051731,-500.0,0.00011041,2]
[353950176,1740165051741,-500.0,0.00011041,2]
[353950177,1740165051751,-500.0,0.00011041,2]
[353950178,1740165051762,-500.0,0.00011041,2]
[353950179,1740165051771,-500.0,0.00011041,2]
[353950180,1740165051780,-500.0,0.00011041,2]
[353950181,1740165051789,-1185.38,0.00011041,2]
[353950182,1740165051797,-500.0,0.00011041,2]
[353950183,1740165051808,-500.0,0.00011041,2]
[353950184,1740165051818,-500.0,0.00011041,2]
[353950185,1740165051827,-672.16,0.00011041,2]
[353950186,1740165051836,-535.75,0.00011041,2]
[353950187,1740165051845,-507.39063633,0.00011041,2]
[353950188,1740165051854,-500.0,0.00011041,2]
[353950189,1740165051864,-500.0,0.00011041,2]
[353950190,1740165051873,-909.05,0.00011041,2]
[353950191,1740165051882,-500.0,0.00011041,2]
[353950192,1740165051890,-504.14621508,0.00011041,2]
[353950193,1740165051899,-500.0,0.00011041,2]
[353950194,1740165051908,-500.0,0.00011041,2]
[353950195,1740165051917,-500.0,0.00011041,2]
[353950196,1740165051929,-1301.85,0.00011041,2]
[353950197,1740165051938,-500.0,0.00011041,2]
[353950198,1740165051947,-500.0,0.00011041,2]
[353950199,1740165051961,-762.98,0.00011041,2]
[353950200,1740165051972,-500.0,0.00011041,2]
[353950201,1740165051983,-500.0,0.00011041,2]
[353950202,1740165051993,-1086.19,0.00011041,2]
[353950203,1740165052005,-628.04,0.00011041,2]
[353950204,1740165052015,-500.0,0.00011041,2]
[353950205,1740165052024,-500.0,0.00011041,2]
[353950206,1740165052034,-500.0,0.00011041,2]
[353950207,1740165052043,-1272.05,0.00011041,2]
[353950208,1740165052053,-2241.53,0.00011041,2]
[353950209,1740165052062,-500.0,0.00011041,2]
[353950210,1740165052071,-500.0,0.00011041,2]
[353950211,1740165052080,-500.0,0.00011041,2]
[353950212,1740165052089,-670.58,0.00011041,2]
[353950213,1740165052099,-500.0,0.00011041,2]
[353950214,1740165052108,-500.0,0.00011041,2]
[353950215,1740165052118,-500.0,0.00011041,2]
[353950216,1740165052127,-500.0,0.00011041,2]
[353950217,1740165052136,-500.0,0.00011041,2]
[353950218,1740165052145,-500.0,0.00011041,2]
[353950219,1740165052154,-500.0,0.00011041,2]
[353950220,1740165052163,-500.0,0.00011041,2]
[353950221,1740165052172,-500.0,0.00011041,2]
[353950222,1740165052181,-500.0,0.00011041,2]
[353950223,1740165052191,-968.09,0.00011041,2]
[353950224,1740165052202,-501.94,0.00011041,2]
[353950225,1740165052212,-1124.07,0.00011041,2]
[353950226,1740165052221,-500.0,0.00011041,2]
[353950227,1740165052231,-500.0,0.00011041,2]
[353950228,1740165052241,-500.0,0.00011041,2]
[353950229,1740165052249,-1924.61,0.00011041,2]
[353950230,1740165052259,-500.0,0.00011041,2]
[353950231,1740165052267,-500.0,0.00011041,2]
[353950232,1740165052276,-503.84,0.00011041,2]
[353950233,1740165052285,-500.0,0.00011041,2]
[353950234,1740165052294,-500.0,0.00011041,2]
[353950235,1740165052303,-807.41,0.00011041,2]
[353950236,1740165052312,-500.0,0.00011041,2]
[353950237,1740165052323,-500.0,0.00011041,2]
[353950238,1740165052333,-500.0,0.00011041,2]
[353950239,1740165052343,-603.23441874,0.00011041,2]
[353950240,1740165052353,-709.07,0.00011041,2]
[353950241,1740165052363,-1488.79,0.00011041,2]
[353950242,1740165052372,-500.0,0.00011041,2]
[353950243,1740165052381,-571.07,0.00011041,2]
[353950244,1740165052390,-500.0,0.00011041,2]
[353950245,1740165052399,-500.0,0.00011041,2]
[353950246,1740165052408,-500.0,0.00011041,2]
[353950247,1740165052418,-500.0,0.00011041,2]
[353950248,1740165052427,-525.29434225,0.00011041,2]
[353950249,1740165052435,-500.0,0.00011041,2]
[353950250,1740165052445,-805.91,0.00011041,2]
[353950251,1740165052454,-243.39170217,0.00011041,2]
[353950252,1740165052463,-500.0,0.00011041,2]
[353950253,1740165052471,-500.0,0.00011041,2]
[353950254,1740165052480,-500.0,0.00011041,2]
[353950255,1740165052489,-500.0,0.00011041,2]
[353950256,1740165052498,-500.0,0.00011041,2]
[353950257,1740165052507,-1851.17,0.00011041,2]
[353950258,1740165052516,-500.0,0.00011041,2]
[353950259,1740165052525,-761.43,0.00011041,2]
[353950260,1740165052534,-1326.72,0.00011041,2]
[353950261,1740165052543,-500.0,0.00011041,2]
[353950262,1740165052552,-500.0,0.00011041,2]
[353950263,1740165052561,-591.1962337,0.00011041,2]
[353950264,1740165052570,-978.38,0.00011041,2]
[353950265,1740165052727,-906.21,0.00011041,2]
[353950266,1740165052736,-500.0,0.00011041,2]
[353950267,1740165052745,-1904.8,0.00011041,2]
[353950268,1740165052754,-502.09797345,0.00011041,2]
[353950269,1740165052763,-880.27,0.00011041,2]
[353950270,1740165052772,-500.0,0.00011041,2]
[353950271,1740165052781,-571.47,0.00011041,2]
[353950272,1740165052790,-1097.77,0.00011041,2]
[353950273,1740165052799,-859.08,0.00011041,2]
[353950274,1740165052807,-934.53,0.00011041,2]
[353950275,1740165052817,-500.0,0.00011041,2]
[353950276,1740165052830,-1546.56,0.00011041,2]
[353950277,1740165052841,-583.31,0.00011041,2]
[353950278,1740165052852,-500.0,0.00011041,2]
[353950279,1740165052864,-500.0,0.00011041,2]
[353950280,1740165052873,-500.0,0.00011041,2]
[353950281,1740165052882,-500.0,0.00011041,2]
[353950282,1740165052891,-515.0718437,0.00011041,2]
[353950283,1740165052902,-500.0,0.00011041,2]
[353950284,1740165052911,-1130.91,0.00011041,2]
[353950285,1740165052920,-500.0,0.00011041,2]
[353950286,1740165052934,-500.0,0.00011041,2]
[353950287,1740165052943,-500.0,0.00011041,2]
[353950288,1740165052954,-500.0,0.00011041,2]
[353950289,1740165052965,-851.02,0.00011041,2]
[353950290,1740165052974,-585.41,0.00011041,2]
[353950291,1740165052984,-500.0,0.00011041,2]
[353950292,1740165052993,-500.0,0.00011041,2]
[353950293,1740165053003,-500.0,0.00011041,2]
[353950294,1740165053013,-568.02,0.00011041,2]
[353950295,1740165053022,-887.3,0.00011041,2]
[353950296,1740165053032,-500.0,0.00011041,2]
[353950297,1740165053041,-4138.33,0.00011041,2]
[353950298,1740165053050,-500.0,0.00011041,2]
[353950299,1740165053060,-500.0,0.00011041,2]
[353950300,1740165053069,-1028.99,0.00011041,2]
[353950301,1740165053079,-500.0,0.00011041,2]
[353950302,1740165053088,-500.0,0.00011041,2]
[353950303,1740165053099,-500.0,0.00011041,2]
[353950304,1740165053108,-500.0,0.00011041,2]
[353950305,1740165053118,-500.0,0.00011041,2]
[353950306,1740165053128,-500.0,0.00011041,2]
[353950307,1740165053138,-2434.92,0.00011041,2]
[353950308,1740165053147,-500.0,0.00011041,2]
[353950309,1740165053157,-1865.97,0.00011041,2]
[353950310,1740165053166,-864.63,0.00011041,2]
[353950311,1740165053175,-500.0,0.00011041,2]
[353950312,1740165053185,-2807.32,0.00011041,2]
[353950313,1740165053194,-500.0,0.00011041,2]
[353950314,1740165053204,-511.69272308,0.00011041,2]
[353950315,1740165053214,-2485.93,0.00011041,2]
[353950316,1740165053223,-500.0,0.00011041,2]
[353950317,1740165053232,-500.0,0.00011041,2]
[353950318,1740165053244,-500.0,0.00011041,2]
[353950319,1740165053257,-500.0,0.00011041,2]
[353950320,1740165053266,-1948.35,0.00011041,2]
[353950321,1740165053275,-500.0,0.00011041,2]
[353950322,1740165053284,-1949.15,0.00011041,2]
[353950323,1740165053293,-1250.92,0.00011041,2]
[353950324,1740165053302,-1368.66,0.00011041,2]
[353950325,1740165053312,-500.0,0.00011041,2]
[353950326,1740165053322,-520.29,0.00011041,2]
[353950327,1740165053331,-500.0,0.00011041,2]
[353950328,1740165053341,-1591.76,0.00011041,2]
[353950329,1740165053350,-500.0,0.00011041,2]
[353950330,1740165053360,-500.0,0.00011041,2]
[353950331,1740165053370,-3268.34,0.00011041,2]
[353950332,1740165053379,-500.0,0.00011041,2]
[353950333,1740165053389,-854.07,0.00011041,2]
[353950334,1740165053398,-500.0,0.00011041,2]
[353950335,1740165053407,-844.22,0.00011041,2]
[353950336,1740165053416,-1747.18,0.00011041,2]
[353950337,1740165053426,-2153.78,0.00011041,2]
[353950338,1740165053435,-1927.68,0.00011041,2]
[353950339,1740165053445,-500.0,0.00011041,2]
[353950340,1740165053454,-500.0,0.00011041,2]
[353950341,1740165053463,-500.0,0.00011041,2]
[353950342,1740165053473,-500.0,0.00011041,2]
[353950343,1740165053482,-2392.73,0.00011041,2]
[353950344,1740165053492,-500.0,0.00011041,2]
[353950345,1740165053502,-500.0,0.00011041,2]
[353950346,1740165053511,-500.0,0.00011041,2]
[353950347,1740165053521,-2224.89,0.00011041,2]
[353950348,1740165053530,-500.0,0.00011041,2]
[353950349,1740165053540,-648.85,0.00011041,2]
[353950350,1740165053549,-1746.45,0.00011041,2]
[353950351,1740165053560,-500.0,0.00011041,2]
[353950352,1740165053569,-579.73,0.00011041,2]
[353950353,1740165053578,-2556.04,0.00011041,2]
[353950354,1740165053587,-500.0,0.00011041,2]
[353950355,1740165053598,-1670.15,0.00011041,2]
[353950356,1740165053607,-2603.67,0.00011041,2]
[353950357,1740165053616,-500.0,0.00011041,2]
[353950358,1740165053626,-500.0,0.00011041,2]
[353950359,1740165053636,-1657.83,0.00011041,2]
[353950360,1740165053645,-500.0,0.00011041,2]
[353950361,1740165053654,-3612.24,0.00011041,2]
[353950362,1740165053663,-500.0,0.00011041,2]
[353950363,1740165053672,-500.0,0.00011041,2]
[353950364,1740165053681,-1834.55,0.00011041,2]
[353950365,1740165053691,-1844.51,0.00011041,2]
[353950366,1740165053700,-500.0,0.00011041,2]
[353950367,1740165053709,-2535.0,0.00011041,2]
[353950368,1740165053718,-500.0,0.00011041,2]
[353950369,1740165053727,-500.0,0.00011041,2]
[353950370,1740165053736,-518.53,0.00011041,2]
[353950371,1740165053746,-597.04,0.00011041,2]
[353950372,1740165053755,-500.0,0.00011041,2]
[353950373,1740165053766,-549.49,0.00011041,2]
[353950374,1740165053775,-2357.0,0.00011041,2]
[353950375,1740165053786,-845.32,0.00011041,2]
[353950376,1740165053796,-500.0,0.00011041,2]
[353950377,1740165053806,-2963.81,0.00011041,2]
[353950378,1740165053815,-510.94,0.00011041,2]
[353950379,1740165053825,-500.0,0.00011041,2]
[353950380,1740165053835,-2566.53,0.00011041,2]
[353950381,1740165053844,-1026.17,0.00011041,2]
[353950382,1740165053854,-500.0,0.00011041,2]
[353950383,1740165053863,-1074.2,0.00011041,2]
[353950384,1740165053872,-550.84,0.00011041,2]
[353950385,1740165053881,-500.0,0.00011041,2]
[353950386,1740165053890,-515.71,0.00011041,2]
[353950387,1740165053899,-5103.01,0.00011041,2]
[353950388,1740165053909,-500.0,0.00011041,2]
[353950389,1740165053918,-1908.26,0.00011041,2]
[353950390,1740165053932,-612.80435912,0.00011041,2]
[353950391,1740165053941,-758.92,0.00011041,2]
[353950392,1740165053951,-500.0,0.00011041,2]
[353950393,1740165053960,-1293.25,0.00011041,2]
[353950394,1740165053970,-939.76,0.00011041,2]
[353950395,1740165053978,-562.9924731,0.00011041,2]
[353950396,1740165053987,-533.8923056,0.00011041,2]
[353950397,1740165053997,-500.0,0.00011041,2]
[353950398,1740165054008,-500.0,0.00011041,2]
[353950399,1740165054017,-500.0,0.00011041,2]
[353950400,1740165054026,-2356.45,0.00011041,2]
[353950401,1740165054035,-500.0,0.00011041,2]
[353950402,1740165054044,-966.62,0.00011041,2]
[353950403,1740165054053,-974.14,0.00011041,2]
[353950404,1740165054063,-500.0,0.00011041,2]
[353950405,1740165054072,-500.0,0.00011041,2]
[353950406,1740165054081,-1909.2,0.00011041,2]
[353950407,1740165054090,-500.0,0.00011041,2]
[353950408,1740165054100,-818.25,0.00011041,2]
[353950409,1740165054110,-500.0,0.00011041,2]
[353950410,1740165054119,-500.0,0.00011041,2]